bitfinex/quotes_ETHUSD_20250904
["timestamp","ask_amount","ask_price","bid_price","bid_amount"]
[1757025424180,11.67884809,4333.4,4333.3,0.004]
[1757025426079,2.30786983,4333.0,4332.9,0.004]
[1757025426257,11.09276112,4333.0,4332.9,0.004]
[1757025426458,11.56386112,4333.0,4332.9,0.004]
[1757025426760,6.0999231,4332.9,4332.8,0.029]
[1757025426980,6.5710231,4332.9,4332.8,0.029]
[1757025432190,6.93300135,4332.9,4332.8,0.029]
[1757025436078,7.04820135,4332.9,4332.8,0.029]
[1757025436290,6.10013618,4332.5,4332.3,0.004]
[1757025436812,6.21533618,4332.5,4332.3,0.004]
[1757025437968,6.21533618,4332.5,4332.4,0.3204]
[1757025439312,6.21533618,4332.5,4332.4,0.004]
[1757025439496,10.54403618,4332.5,4332.4,0.004]
[1757025439812,10.63660724,4332.5,4332.4,0.004]
[1757025440114,6.10034929,4332.1,4332.0,0.004]
[1757025440309,14.94524058,4332.1,4332.0,0.004]
[1757025440467,15.42194058,4332.1,4332.0,0.004]
[1757025440670,15.53714058,4332.1,4332.0,0.004]
[1757025441105,10.16012892,4332.1,4332.0,0.004]
[1757025441412,10.63682892,4332.1,4332.0,0.004]
[1757025441982,10.8129362,4332.1,4332.0,0.004]
[1757025446218,6.10040258,4332.0,4331.9,0.004]
[1757025446398,11.09329387,4332.0,4331.9,0.004]
[1757025451391,11.57049387,4332.0,4331.9,0.004]
[1757025452421,12.04719387,4332.0,4331.9,0.004]
[1757025453093,7.05430258,4332.0,4331.9,0.004]
[1757025453295,15.42349387,4332.0,4331.9,0.004]
[1757025454117,15.90019387,4332.0,4331.9,0.004]
[1757025456421,3.10056245,4331.7,4331.6,0.004]
[1757025456723,11.94645374,4331.7,4331.6,0.004]
[1757025456937,12.06165374,4331.7,4331.6,0.004]
[1757025458171,12.06165374,4331.7,4331.6,0.7936]
[1757025459046,8.20865374,4331.7,4331.6,0.7936]
[1757025460348,8.20865374,4331.7,4331.6,0.2962]
[1757025460558,8.20865374,4331.7,4331.6,0.7665]
[1757025462012,8.20865374,4331.7,4331.6,1.2572]
[1757025462538,8.20865374,4331.7,4331.6,0.7665]
[1757025463848,8.20865374,4331.7,4331.6,0.2962]
[1757025464431,8.20865374,4331.7,4331.6,0.004]
[1757025465146,8.70305374,4331.7,4331.6,0.004]
[1757025466349,8.70305374,4331.7,4331.4,0.004]
[1757025466350,3.10066905,4331.5,4331.4,0.004]
[1757025466555,6.10066905,4331.5,4331.4,0.004]
[1757025468359,6.10066905,4331.5,4331.4,0.2962]
[1757025468657,6.10066905,4331.5,4331.4,0.7665]
[1757025471430,6.59506905,4331.5,4331.4,0.004]
[1757025471663,6.10072235,4331.4,4331.3,0.004]
[1757025472053,11.20881364,4331.4,4331.3,0.004]
[1757025473286,11.20881364,4331.4,4331.3,1.2572]
[1757025473287,6.21592235,4331.4,4331.3,1.2572]
[1757025475143,0.001,4331.7,4331.3,1.2572]
[1757025475340,0.1152,4331.6,4331.4,0.4703]
[1757025475588,0.69434881,4331.5,4331.4,0.4703]
[1757025475760,0.1152,4331.6,4331.4,0.7625]
[1757025476081,0.1152,4331.6,4331.5,0.4907]
[1757025476243,0.001,4331.7,4331.5,0.4907]
[1757025476451,0.001,4331.7,4331.6,0.2922]
[1757025476880,0.001,4331.7,4331.6,1.2532]
[1757025481249,2.30956245,4331.7,4331.6,1.2532]
[1757025483658,2.30956245,4331.7,4331.6,0.2922]
[1757025483851,2.30956245,4331.7,4331.6,0.7625]
[1757025484379,0.001,4331.7,4331.6,1.2532]
[1757025484583,2.30956245,4331.7,4331.6,1.2532]
[1757025484881,0.001,4331.7,4331.6,1.2532]
[1757025485071,2.30956245,4331.7,4331.6,1.2532]
[1757025486278,0.001,4331.7,4331.6,1.2532]
[1757025488383,0.001,4331.7,4331.6,4.20381216]
[1757025489693,0.001,4331.7,4331.6,4.20781216]
[1757025490180,0.001,4331.7,4331.6,8.05981216]
[1757025494561,0.001,4331.7,4331.6,8.17501216]
[1757025504908,0.001,4331.7,4331.6,7.70471216]
[1757025505207,0.001,4331.7,4331.6,6.39401575]
[1757025505415,0.4715,4331.7,4331.6,3.9702]
[1757025505779,0.4715,4331.7,4331.6,0.1192]
[1757025505977,0.4715,4331.7,4331.6,0.004]
[1757025506495,0.4715,4331.7,4331.6,3.855]
[1757025508012,2.78006245,4331.7,4331.6,0.004]
[1757025508221,2.78006245,4331.7,4331.6,3.855]
[1757025508690,5.78006245,4331.7,4331.6,3.855]
[1757025511428,6.57206245,4331.7,4331.6,3.855]
[1757025511826,5.78006245,4331.7,4331.6,3.855]
[1757025512393,3.4715,4331.7,4331.6,3.855]
[1757025512589,3.001,4331.7,4331.6,3.855]
[1757025513029,3.4715,4331.7,4331.6,3.855]
[1757025514140,3.001,4331.7,4331.6,3.855]
[1757025514307,3.1162,4331.7,4331.6,3.855]
[1757025514994,3.5867,4331.7,4331.6,3.855]
[1757025519735,3.1162,4331.7,4331.6,3.855]
[1757025520203,0.1162,4331.7,4331.6,4.5791]
[1757025520408,0.001,4331.7,4331.6,4.143]
[1757025527016,0.001,4331.7,4331.6,6.88771575]
[1757025527349,0.001,4331.7,4331.6,4.5791]
[1757025530046,0.001,4331.7,4331.6,6.88771575]
[1757025530548,0.001,4331.7,4331.6,4.5791]
[1757025531610,0.001,4331.7,4331.6,6.45161575]
[1757025531811,0.001,4331.7,4331.6,8.50744852]
[1757025539965,0.001,4331.7,4331.6,8.04954852]
[1757025547248,0.001,4331.7,4331.6,7.32544852]
[1757025547472,0.001,4331.7,4331.6,6.27881575]
[1757025547677,0.4792,4331.7,4331.6,3.9702]
[1757025547878,0.4792,4331.7,4331.6,6.27881575]
[1757025548187,0.001,4331.7,4331.6,6.27881575]
[1757025549954,0.001,4331.7,4331.6,6.59101575]
[1757025550149,0.001,4331.7,4331.6,8.60179226]
[1757025550357,0.001,4331.7,4331.6,9.08439226]
[1757025553791,0.792,4330.6,4328.6,0.4826]
[1757025554085,0.792,4330.6,4327.9,2.1517]
[1757025554086,11.096552,4329.9,4328.9,0.191]
[1757025554287,3.10184223,4329.3,4329.2,1.47]
[1757025554491,3.10194895,4329.1,4329.0,1.47]
[1757025554685,6.10194895,4329.1,4329.0,1.47]
[1757025554891,6.55524895,4329.1,4329.0,1.47]
[1757025555065,7.2499531,4329.1,4329.0,1.47]
[1757025556156,2.31005567,4328.9,4328.8,3.99]
[1757025557284,11.55038552,4328.9,4328.8,0.025]
[1757025557479,3.00465347,4329.1,4328.8,0.025]
[1757025557683,3.0,4329.0,4328.8,0.025]
[1757025558082,3.0,4328.8,4326.8,0.025]
[1757025558319,8.78702985,4326.9,4326.8,0.025]
[1757025558595,6.10312343,4326.9,4326.8,0.025]
[1757025558891,3.0,4326.9,4326.8,0.025]
[1757025559192,0.4986,4327.0,4326.8,0.3372]
[1757025559491,3.0,4327.9,4326.9,1.16962]
[1757025559695,0.792,4327.9,4326.9,0.4826]
[1757025559862,0.69489565,4327.1,4326.9,0.4826]
[1757025560062,0.69489565,4327.1,4327.0,0.3122]
[1757025560888,0.69489565,4327.1,4327.0,1.2455]
[1757025561067,0.69489565,4327.1,4327.0,3.55657002]
[1757025561807,0.792,4327.9,4327.0,1.2455]
[1757025562098,0.69489403,4327.3,4327.1,4.028]
[1757025562300,0.69489403,4327.3,4327.2,0.3122]
[1757025562673,0.69489403,4327.3,4326.9,2.3111134]
[1757025562674,3.792,4327.2,4326.8,0.025]
[1757025562869,1.1985,4327.2,4326.8,0.025]
[1757025563093,5.31112343,4326.9,4326.8,0.025]
[1757025563403,0.69489403,4327.3,4326.8,0.025]
[1757025563702,0.69489403,4327.3,4326.9,4.054]
[1757025563894,0.1152,4327.0,4326.9,4.054]
[1757025564068,0.1152,4327.0,4326.9,4.3662]
[1757025568182,3.0,4327.7,4326.9,5.2995]
[1757025568512,0.1152,4327.2,4326.9,5.2995]
[1757025569085,0.1152,4327.2,4326.9,4.3662]
[1757025569306,0.1152,4327.2,4327.0,0.4826]
[1757025569718,0.1152,4327.2,4327.1,0.3122]
[1757025571114,0.1152,4327.4,4327.1,1.2455]
[1757025571415,0.1152,4327.4,4327.2,4.041]
[1757025571605,0.1152,4327.4,4327.2,6.35196179]
[1757025571802,4.0122341,4328.6,4327.5,2.310762]
[1757025572105,0.1152,4327.9,4327.6,4.04]
[1757025575099,2.4257994,4327.9,4327.6,4.04]
[1757025576716,2.4257994,4327.9,4327.3,0.1152]
[1757025576717,0.792,4327.8,4327.3,0.1152]
[1757025576918,2.42609983,4327.4,4327.2,4.035]
[1757025577095,0.1152,4327.3,4327.2,4.035]
[1757025577301,2.4261098,4327.3,4327.2,4.035]
[1757025577913,0.1152,4327.3,4327.2,4.035]
[1757025578823,0.1152,4327.3,4327.2,4.3472]
[1757025579395,0.1152,4327.3,4327.2,2.4721936]
[1757025579913,0.1152,4327.3,4327.2,3.3779936]
[1757025580419,0.1152,4327.3,4327.2,2.9482936]
[1757025580618,0.1152,4327.3,4327.2,2.4721936]
[1757025580833,0.1152,4327.3,4327.2,2.1599936]
[1757025581416,0.1152,4327.3,4327.2,4.035]
[1757025582417,2.66871651,4327.3,4327.2,4.035]
[1757025582725,2.31101682,4327.1,4326.8,4.058]
[1757025582928,0.1152,4327.0,4326.8,4.058]
[1757025583336,2.42628926,4327.0,4326.8,4.058]
[1757025585311,0.1152,4327.0,4326.8,4.058]
[1757025585823,2.42628649,4327.0,4326.8,4.058]
[1757025586629,2.31112343,4326.9,4326.8,4.058]
[1757025586829,5.33499424,4327.0,4326.8,4.058]
[1757025587434,5.33499424,4327.0,4326.8,1.55775412]
[1757025587804,2.31112343,4326.9,4326.8,1.55775412]
[1757025588635,5.33500708,4327.0,4326.8,1.55775412]
[1757025588816,2.42628553,4327.0,4326.8,1.55775412]
[1757025589230,2.31112343,4326.9,4326.8,1.55775412]
[1757025589537,0.1152,4327.0,4326.8,1.55775412]
[1757025589708,2.42631427,4327.0,4326.8,1.55775412]
[1757025591039,2.31112343,4326.9,4326.8,1.55775412]
[1757025592530,2.31112343,4326.9,4326.5,4.58514425]
[1757025592734,2.31112343,4326.9,4326.6,0.9058]
[1757025593036,2.42628356,4327.0,4326.6,0.9058]
[1757025593234,2.31113599,4326.9,4326.6,0.9058]
[1757025593413,2.31113599,4326.9,4326.5,2.56099618]
[1757025593839,2.42627979,4327.0,4326.5,2.56099618]
[1757025594538,0.1152,4327.0,4326.5,2.56099618]
[1757025595326,0.1152,4327.0,4326.5,3.03709618]
[1757025595531,2.42628072,4327.0,4326.5,3.46679618]
[1757025595922,0.1152,4327.0,4326.6,0.9058]
[1757025596122,0.1152,4327.0,4326.6,0.4761]
[1757025596518,2.42627581,4327.0,4326.5,2.56099618]
[1757025596725,2.84097581,4327.0,4326.5,2.56099618]
[1757025597940,0.5299,4327.0,4326.5,2.56099618]
[1757025598239,2.84099235,4327.0,4326.5,2.56099618]
[1757025598444,0.5299,4327.0,4326.5,2.56499618]
[1757025598639,2.84198619,4327.0,4326.5,2.56499618]
[1757025598834,7.43593051,4327.0,4326.5,3.04109618]
[1757025599013,7.43590599,4327.0,4326.5,3.04109618]
[1757025599215,7.85060599,4327.0,4326.5,3.04109618]
[1757025599415,2.31113176,4326.9,4326.5,3.04109618]
[1757025600238,2.72583176,4326.9,4326.5,2.56499618]
[1757025600443,0.4147,4326.9,4326.5,2.56499618]
[1757025600942,5.12483176,4327.0,4326.5,2.56499618]
[1757025601249,7.85061474,4327.0,4326.5,2.56499618]
[1757025602044,0.0041,4326.6,4326.5,2.56499618]
[1757025602521,3.2119329,4326.9,4326.5,2.56499618]
[1757025602727,0.4147,4326.8,4326.5,2.56499618]
[1757025603136,2.8014329,4326.9,4326.5,2.56499618]
[1757025603318,0.0041,4326.6,4326.5,2.56499618]
[1757025603738,0.4105,4326.8,4326.5,2.56499618]
[1757025603936,0.001,4327.0,4326.7,0.3086]
[1757025604215,0.001,4327.0,4326.8,0.4761]
[1757025604764,0.001,4327.0,4326.9,0.3086]
[1757025606222,0.001,4327.0,4326.9,1.2144]
[1757025606418,0.001,4327.0,4326.9,0.7847]
[1757025606630,0.001,4327.0,4326.9,1.2144]
[1757025608861,0.001,4327.0,4326.9,5.2094]
[1757025611862,0.001,4327.0,4326.9,7.52052343]
[1757025612369,0.001,4327.0,4326.9,5.2094]
[1757025612769,0.001,4327.0,4326.9,7.52052343]
[1757025613068,0.001,4327.0,4326.9,5.2094]
[1757025613256,0.001,4327.0,4326.9,7.52052343]
[1757025614184,0.001,4327.0,4326.9,9.78563607]
[1757025615147,0.001,4327.0,4326.9,15.67921098]
[1757025616240,0.001,4327.0,4326.9,9.78563607]
[1757025620045,0.001,4327.0,4326.9,4.01412343]
[1757025620046,0.2978,4327.0,4326.9,4.01412343]
[1757025620241,0.2978,4327.0,4326.9,7.99412343]
[1757025622177,0.001,4327.0,4326.9,7.99412343]
[1757025624658,0.2978,4327.0,4326.9,7.99412343]
[1757025626847,0.001,4327.0,4326.9,8.78402343]
[1757025627174,0.001,4327.0,4326.9,9.24132343]
[1757025627377,0.001,4327.0,4326.9,8.30912343]
[1757025628858,0.001,4327.0,4326.9,9.90330869]
[1757025629174,0.001,4327.0,4326.9,10.47580869]
[1757025631973,0.001,4327.0,4326.9,10.47580869]
[1757025639202,0.001,4327.0,4326.9,10.5684357]
[1757025648320,0.001,4327.0,4326.9,10.1111357]
[1757025648491,0.001,4327.0,4326.9,10.5447357]
[1757025651423,0.001,4327.0,4326.9,9.2902357]
[1757025653897,0.001,4327.0,4326.9,9.5831357]
[1757025654222,0.001,4327.0,4326.9,19.39981061]
[1757025655197,0.001,4327.0,4326.9,20.19181061]
[1757025656032,0.001,4327.0,4326.9,8.6341357]
[1757025656203,0.001,4327.0,4326.9,12.5781357]
[1757025656403,0.001,4327.0,4326.9,14.2932357]
[1757025661550,0.001,4327.0,4326.9,13.8596357]
[1757025661705,0.001,4327.0,4326.9,14.2932357]
[1757025663343,0.001,4327.0,4326.9,13.8596357]
[1757025665440,0.001,4327.0,4326.9,18.86382893]
[1757025666739,0.001,4327.0,4326.9,18.08142893]
[1757025667757,1.2253,4327.0,4326.9,5.3412357]
[1757025667960,1.2253,4327.0,4326.9,5.84582701]
[1757025668160,1.2253,4327.0,4326.9,8.06432343]
[1757025672526,1.2253,4327.0,4326.9,5.7532]
[1757025675147,1.2253,4327.0,4326.9,4.0502]
[1757025675349,1.34783,4327.0,4326.9,3.935]
[1757025675860,1.34783,4327.0,4326.6,0.1152]
[1757025676158,1.34783,4327.0,4326.5,0.004]
[1757025676159,7.43063199,4326.7,4326.5,0.004]
[1757025676334,5.11939323,4326.7,4326.5,0.004]
[1757025676652,1.2513,4326.6,4326.5,0.004]
[1757025676860,1.2513,4326.6,4326.5,3.935]
[1757025677347,1.2513,4326.6,4326.5,6.2463371]
[1757025677556,1.2513,4326.6,4326.5,3.935]
[1757025682522,1.3665,4326.6,4326.5,3.935]
[1757025691649,0.8958,4326.6,4326.5,3.935]
[1757025691853,0.8924,4326.6,4326.5,3.935]
[1757025692228,1.3665,4326.6,4326.5,3.935]
[1757025694360,0.8924,4326.6,4326.5,3.935]
[1757025696567,1.3665,4326.6,4326.5,3.935]
[1757025697446,3.67778368,4326.6,4326.5,3.935]
[1757025698232,3.67778368,4326.6,4326.5,0.004]
[1757025698437,6.67778368,4326.6,4326.5,0.004]
[1757025702169,7.46978368,4326.6,4326.5,0.004]
[1757025702467,7.47078368,4326.6,4326.5,0.004]
[1757025708161,11.38178368,4326.6,4326.5,0.004]
[1757025711986,11.47447336,4326.6,4326.5,0.004]
[1757025718459,10.21717336,4326.6,4326.5,0.3113]
[1757025718664,9.33248368,4326.6,4326.5,0.7921]
[1757025718875,9.33248368,4326.6,4326.5,1.239]
[1757025719389,9.33248368,4326.6,4326.5,0.7921]
[1757025719772,9.33248368,4326.6,4326.5,0.004]
[1757025720484,9.33248368,4326.6,4326.5,0.3113]
[1757025720986,5.42748368,4326.6,4326.5,0.3113]
[1757025721183,9.33148368,4326.6,4326.5,0.004]
[1757025721496,9.62928368,4326.6,4326.5,0.004]
[1757025723870,9.33148368,4326.6,4326.5,0.004]
[1757025724599,5.42748368,4326.6,4326.5,0.3113]
[1757025724773,5.42748368,4326.6,4326.5,1.239]
[1757025724774,3.1162,4326.6,4326.5,1.239]
[1757025725479,5.42748368,4326.6,4326.5,1.239]
[1757025727817,3.1162,4326.6,4326.5,1.239]
[1757025728573,5.42748368,4326.6,4326.5,1.239]
[1757025734912,3.1162,4326.6,4326.5,1.239]
[1757025735575,0.1162,4326.6,4326.5,1.2432]
[1757025743028,0.001,4326.6,4326.5,1.2432]
[1757025744702,0.001,4326.6,4326.5,3.57765047]
[1757025744908,0.001,4326.6,4326.5,3.5545371]
[1757025745592,0.001,4326.6,4326.5,4.26826043]
[1757025746722,0.001,4326.6,4326.5,8.16826043]
[1757025751931,0.001,4326.6,4326.5,8.28446043]
[1757025757811,0.001,4326.6,4326.5,7.83336043]
[1757025758106,0.001,4326.6,4326.5,5.52202333]
[1757025760632,0.001,4326.6,4326.5,5.04122333]
[1757025761012,0.001,4326.6,4326.5,7.35256043]
[1757025761522,0.3043,4326.6,4326.5,4.73392333]
[1757025761719,0.748,4326.6,4326.5,4.1354]
[1757025762744,0.748,4326.6,4326.5,4.0202]
[1757025763751,0.748,4326.6,4326.5,3.904]
[1757025764461,0.3043,4326.6,4326.5,3.904]
[1757025764760,0.748,4326.6,4326.5,3.904]
[1757025764916,1.2299,4326.6,4326.5,0.004]
[1757025765116,3.54118368,4326.6,4326.5,0.004]
[1757025765324,4.23627897,4326.6,4326.5,0.004]
[1757025765617,4.35147897,4326.6,4326.5,0.004]
[1757025774062,8.25047897,4326.6,4326.5,0.004]
[1757025774669,11.25047897,4326.6,4326.5,0.004]
[1757025776344,10.76857897,4326.6,4326.5,0.004]
[1757025778966,11.25047897,4326.6,4326.5,0.004]
[1757025780068,10.76857897,4326.6,4326.5,0.004]
[1757025781146,6.86957897,4326.6,4326.5,0.004]
[1757025781453,11.24947897,4326.6,4326.5,0.004]
[1757025781850,10.76757897,4326.6,4326.5,0.004]
[1757025783464,11.24947897,4326.6,4326.5,0.004]
[1757025783968,10.76757897,4326.6,4326.5,0.004]
[1757025784973,10.32387897,4326.6,4326.5,0.004]
[1757025786671,10.76757897,4326.6,4326.5,0.004]
[1757025787775,11.24947897,4326.6,4326.5,0.004]
[1757025788472,10.76757897,4326.6,4326.5,0.004]
[1757025789270,10.32387897,4326.6,4326.5,0.004]
[1757025790361,6.12257897,4326.6,4326.5,0.004]
[1757025790673,10.02057897,4326.6,4326.5,0.004]
[1757025791671,10.32257897,4326.6,4326.5,0.004]
[1757025799464,10.01957897,4326.6,4326.5,0.3115]
[1757025801487,6.12257897,4326.6,4326.5,0.3115]
[1757025805014,0.001,4326.6,4326.5,1.2679]
[1757025805173,0.1162,4326.6,4326.5,1.2679]
[1757025805494,2.72948368,4326.6,4326.5,0.004]
[1757025805797,3.17738368,4326.6,4326.5,0.004]
[1757025806399,6.27005812,4326.6,4326.5,0.004]
[1757025806695,6.74205812,4326.6,4326.5,0.004]
[1757025807878,10.63805812,4326.6,4326.5,0.004]
[1757025809966,10.16605812,4326.6,4326.5,0.004]
[1757025811307,9.71815812,4326.6,4326.5,0.004]
[1757025811476,10.19015812,4326.6,4326.5,0.004]
[1757025811677,10.63805812,4326.6,4326.5,0.004]
[1757025812702,11.43005812,4326.6,4326.5,0.004]
[1757025818729,16.43989955,4326.6,4326.5,0.004]
[1757025820129,11.43005812,4326.6,4326.5,0.004]
[1757025820329,3.10339053,4326.4,4326.3,0.004]
[1757025820531,16.71223196,4326.4,4326.3,0.004]
[1757025820713,17.91163196,4326.4,4326.3,0.004]
[1757025824134,12.90179053,4326.4,4326.3,0.004]
[1757025824338,17.91163196,4326.4,4326.3,0.004]
[1757025825937,22.92147339,4326.4,4326.3,0.004]
[1757025827106,19.02647339,4326.4,4326.3,0.004]
[1757025827303,22.92047339,4326.4,4326.3,0.004]
[1757025827503,17.91063196,4326.4,4326.3,0.004]
[1757025828037,22.92047339,4326.4,4326.3,0.004]
[1757025829237,19.02647339,4326.4,4326.3,0.004]
[1757025829437,22.92047339,4326.4,4326.3,0.004]
[1757025834058,22.46527339,4326.4,4326.3,0.004]
[1757025834354,16.71123196,4326.4,4326.3,0.3067]
[1757025835450,16.71123196,4326.4,4326.3,0.004]
[1757025835650,17.02693196,4326.4,4326.3,0.004]
[1757025835855,22.46527339,4326.4,4326.3,0.004]
[1757025838637,22.46427339,4326.4,4326.3,0.004]
[1757025839860,22.91947339,4326.4,4326.3,0.004]
[1757025840362,22.46427339,4326.4,4326.3,0.004]
[1757025841963,22.03577339,4326.4,4326.3,0.004]
[1757025842733,18.14277339,4326.4,4326.3,0.004]
[1757025843061,22.03577339,4326.4,4326.3,0.004]
[1757025845574,22.46427339,4326.4,4326.3,0.004]
[1757025847354,22.03577339,4326.4,4326.3,0.004]
[1757025847659,22.46427339,4326.4,4326.3,5.928e-05]
[1757025849576,18.34334679,4326.4,4326.3,5.928e-05]
[1757025853872,18.34334679,4326.4,4326.0,0.004]
[1757025853873,2.31155081,4326.1,4326.0,0.004]
[1757025854074,9.31875081,4326.1,4326.0,0.004]
[1757025854278,9.31875081,4326.1,4326.0,0.3206]
[1757025854861,10.01399913,4326.1,4326.0,0.3206]
[1757025862886,10.01399913,4326.1,4326.0,0.004]
[1757025863076,10.30479913,4326.1,4326.0,0.004]
[1757025869922,10.01399913,4326.1,4326.0,0.004]
[1757025881354,2.42675081,4326.1,4326.0,1.2738]
[1757025883951,0.1152,4326.1,4326.0,1.2738]
[1757025886239,2.42675081,4326.1,4326.0,0.8125]
[1757025887912,2.42675081,4326.1,4326.0,1.2738]
[1757025888137,0.1152,4326.1,4326.0,1.2738]
[1757025888335,2.42675081,4326.1,4326.0,1.2738]
[1757025889352,0.1152,4326.1,4326.0,1.2738]
[1757025889533,2.42675081,4326.1,4326.0,1.2738]
[1757025893060,0.1152,4326.1,4326.0,1.2738]
[1757025894834,2.42675081,4326.1,4326.0,1.2738]
[1757025895848,2.73535081,4326.1,4326.0,0.004]
[1757025896864,2.42675081,4326.1,4326.0,0.004]
[1757025897166,2.51943834,4326.1,4326.0,0.004]
[1757025897738,2.51943834,4326.1,4326.0,0.3035]
[1757025900074,2.51943834,4326.1,4326.0,0.004]
[1757025900545,17.3135946,4326.1,4326.0,0.004]
[1757025901667,6.31143834,4326.1,4326.0,0.3035]
[1757025901866,3.20788753,4326.1,4326.0,1.2567]
[1757025902067,5.42675081,4326.1,4326.0,1.2567]
[1757025902763,3.1152,4326.1,4326.0,1.2567]
[1757025903460,5.42675081,4326.1,4326.0,1.2567]
[1757025903974,3.1152,4326.1,4326.0,1.2567]
[1757025905877,5.42675081,4326.1,4326.0,1.2567]
[1757025906248,3.1152,4326.1,4326.0,1.2567]
[1757025907092,5.42675081,4326.1,4326.0,0.3035]
[1757025907389,5.42675081,4326.1,4326.0,1.2567]
[1757025908985,5.73815081,4326.1,4326.0,0.004]
[1757025909177,6.16725081,4326.1,4326.0,0.004]
[1757025909485,5.73815081,4326.1,4326.0,0.004]
[1757025909657,5.42675081,4326.1,4326.0,0.004]
[1757025909858,6.16725081,4326.1,4326.0,0.004]
[1757025910574,6.63045081,4326.1,4326.0,0.004]
[1757025910977,10.51445081,4326.1,4326.0,0.004]
[1757025911492,15.52537699,4326.1,4326.0,0.004]
[1757025911861,16.77917699,4326.1,4326.0,0.004]
[1757025913882,5.88995081,4326.1,4326.0,0.7655]
[1757025914084,5.42675081,4326.1,4326.0,1.2335]
[1757025914250,9.30975081,4326.1,4326.0,1.2335]
[1757025914456,9.40244006,4326.1,4326.0,0.3063]
[1757025914988,7.09088925,4326.1,4326.0,1.2335]
[1757025915294,9.40244006,4326.1,4326.0,1.2335]
[1757025915488,3.20788925,4326.1,4326.0,1.2335]
[1757025915686,3.1152,4326.1,4326.0,1.2335]
[1757025916186,5.42675081,4326.1,4326.0,1.2335]
[1757025916389,5.42675081,4326.1,4326.0,0.7655]
[1757025916590,10.74907699,4326.1,4326.0,0.004]
[1757025917686,14.63207699,4326.1,4326.0,0.004]
[1757025919763,10.74907699,4326.1,4326.0,0.004]
[1757025920071,5.42675081,4326.1,4326.0,1.2335]
[1757025920280,5.42675081,4326.1,4326.0,0.3063]
[1757025922625,3.1152,4326.1,4326.0,0.7655]
[1757025922767,3.1152,4326.1,4326.0,1.2335]
[1757025923199,0.1152,4326.1,4326.0,1.2335]
[1757025923401,0.1152,4326.1,4326.0,1.42925889]
[1757025926746,0.1152,4326.1,4326.0,1.2335]
[1757025932315,0.1152,4326.1,4326.0,1.25661604]
[1757025932528,0.001,4326.3,4326.2,2.31149738]
[1757025932737,0.001,4326.3,4326.2,6.21561235]
[1757025932942,0.001,4326.3,4326.2,6.49479738]
[1757025933110,0.001,4326.3,4326.2,7.42199738]
[1757025933509,0.001,4326.3,4326.2,8.91989016]
[1757025934334,0.001,4326.3,4326.2,10.62389016]
[1757025935046,0.001,4326.3,4326.2,15.63481634]
[1757025935545,0.001,4326.3,4326.2,15.72747231]
[1757025935915,0.001,4326.3,4326.2,20.73839849]
[1757025936463,0.001,4326.3,4326.2,15.72747231]
[1757025937234,0.001,4326.3,4326.2,18.72747231]
[1757025937534,0.001,4326.3,4326.2,23.73839849]
[1757025938051,0.001,4326.3,4326.2,18.72747231]
[1757025940572,0.001,4326.3,4326.2,18.72647231]
[1757025940780,0.001,4326.3,4326.2,6.36754613]
[1757025940945,0.2909,4326.3,4326.2,7.89549738]
[1757025943146,0.7555,4326.3,4326.2,7.89549738]
[1757025943336,1.2236,4326.3,4326.2,1.704]
[1757025943542,1.34616,4326.3,4326.2,5.583]
[1757025943741,1.34616,4326.3,4326.2,3.879]
[1757025944469,1.2236,4326.3,4326.2,3.879]
[1757025945667,0.7555,4326.3,4326.2,3.879]
[1757025945859,0.2909,4326.3,4326.2,3.879]
[1757025946168,0.001,4326.3,4326.2,7.41899738]
[1757025946671,0.001,4326.3,4326.2,6.49199738]
[1757025947669,0.001,4326.3,4326.2,7.47697701]
[1757025947876,0.001,4326.3,4326.2,7.93357701]
[1757025948043,0.001,4326.3,4326.2,8.40397701]
[1757025950263,0.001,4326.3,4326.2,7.47697701]
[1757025951953,0.2909,4326.3,4326.2,0.98497963]
[1757025952149,0.2909,4326.3,4326.2,3.879]
[1757025952380,0.7555,4326.3,4326.2,3.879]
[1757025952976,0.2909,4326.3,4326.2,3.879]
[1757025954266,0.001,4326.3,4326.2,6.49199738]
[1757025954461,0.001,4326.3,4326.2,4.1805]
[1757025954971,0.001,4326.3,4326.2,3.879]
[1757025956089,0.2909,4326.3,4326.2,3.879]
[1757025959464,0.2909,4326.3,4326.2,6.19049738]
[1757025959863,0.2909,4326.3,4326.2,3.879]
[1757025960288,0.7555,4326.3,4326.2,3.879]
[1757025961003,0.2909,4326.3,4326.2,3.879]
[1757025961165,0.2909,4326.3,4326.2,6.61325258]
[1757025961368,0.001,4326.3,4326.2,6.91475258]
[1757025961875,0.001,4326.3,4326.2,12.96787876]
[1757025962065,0.001,4326.3,4326.2,7.95695258]
[1757025963411,0.001,4326.3,4326.2,7.48655258]
[1757025964021,0.001,4326.3,4326.2,0.5379552]
[1757025964022,0.2909,4326.3,4326.2,0.5379552]
[1757025964173,0.7555,4326.3,4326.2,3.9932]
[1757025965299,0.7555,4326.3,4326.2,6.30469738]
[1757025967475,0.7555,4326.3,4326.2,3.9932]
[1757025967682,1.2236,4326.3,4326.2,3.9932]
[1757025967878,0.7555,4326.3,4326.2,3.9932]
[1757025968685,0.2909,4326.3,4326.2,6.30469738]
[1757025969009,0.2909,4326.3,4326.2,7.19452272]
[1757025969208,0.2909,4326.3,4326.2,6.30469738]
[1757025969604,0.001,4326.3,4326.2,6.59339738]
[1757025969993,0.001,4326.3,4326.2,7.06399738]
[1757025970301,0.001,4326.3,4326.2,6.59339738]